Cogmind - Beta 15 --- EXPLORER MODE // 2025.07.23 @ 03:14:28 // Winter2019/RPGLIKE Player: User15V Result: Self-destructed Performance ------------- Evolutions (8) 4000 Regions Visited (11) 2200 Robots Destroyed (124) 620 Value Destroyed (5179) 5179 Prototype IDs (11) 220 Alien Tech Used (0) 0 Bonus (1081) 1081 TOTAL SCORE: 13300 Bonus ------- High Alert Combat Kills 81 Entered DSFs 500 Scanned by Researcher 500 Cogmind --------- Core Integrity 1235/1400 Matter 450/450 Energy 387/390 System Corruption 0% Temperature Cool (6) Movement Hovering (52) Location -2/Testing Parts ------- > --- POWER (2) -------- Micro Antimatter Reactor Graviton Reactor > --- PROPULSION (4) --- Improved Antigrav System Antigrav Array Combat Linear Gravjet > --- UTILITY (12) ----- Advanced Heat Sink Advanced Sensor Array Advanced Signal Interpreter Improved Terrain Scanner Advanced Targeting Computer Advanced Recoil Stabilizer Matter Filter Advanced Weapon Cycler Improved Transmission Jammer Improved Phase Shifter Graphene Brace High-powered Tractor Beam > --- WEAPON (5) ------- Railgun Railgun Railgun Railgun Railgun > --- INVENTORY (5) ---- Graviton Reactor Linear Gravjet Peak State ------------ > --- POWER ------------ Micro Antimatter Reactor Graviton Reactor > --- PROPULSION ------- Linear Gravjet Antigrav Array Combat Linear Gravjet > --- UTILITY ---------- Advanced Heat Sink Advanced Sensor Array Advanced Signal Interpreter Improved Terrain Scanner Advanced Targeting Computer Advanced Recoil Stabilizer Matter Filter Advanced Weapon Cycler Improved Transmission Jammer Improved Phase Shifter Graphene Brace High-powered Tractor Beam > --- WEAPON ----------- Railgun Railgun Railgun Railgun Railgun > --- INVENTORY -------- Graviton Reactor Improved Antigrav System Chainsword [Rating: 147] Favorites ----------- Power Fission Core Engine Light Ion Engine Power Core Fission Core Reactor Graviton Reactor Propulsion Gravmag System Leg Aluminum Leg Wheel Wheel Hover Unit Gravmag System Utility Improved Terrain Scanner Device Improved Terrain Scanner Processor Advanced Signal Interpreter Hackware System Shield Protection Improved Light Armor Plating Weapon Railgun Energy Gun Medium Laser Ballistic Gun Railgun Slashing Weapon Chainsword Build | -11 -10 -9 -8 -7 -7 -6 -5 -4 -3 -2 -2 ------- Run | Yrd Mat Mat Mat Fac DSF Fac Fac Fac Res Res Tes Slots Evolved 19 | 4 . 3 3 . 3 1 2 1 1 . 1 Power 1 | . . . . . . . . 1 . . . Propulsion 3 | 1 . 1 1 . . . . . . . . Utility 11 | 2 . 1 2 . 2 1 1 . 1 . 1 Weapon 4 | 1 . 1 . . 1 . 1 . . . . Parts Attached 74 | 5 3 7 7 . 8 15 4 14 8 1 2 Power 9 | . . 1 1 . 1 2 . 1 3 . . Engine 4 | . . 1 1 . 1 1 . . . . . Core 2 | . . . . . . 1 . . 1 . . Reactor 3 | . . . . . . . . 1 2 . . Propulsion 17 | 2 . 3 . . 3 1 3 3 1 1 . Treads . | . . . . . . . . . . . . Leg . | . . . . . . . . . . . . Wheel 2 | 2 . . . . . . . . . . . Hover 15 | . . 3 . . 3 1 3 3 1 1 . Flight . | . . . . . . . . . . . . Utility 27 | 1 1 1 4 . 3 5 1 6 4 . 1 Device 15 | 1 1 . 1 . 2 2 1 2 4 . 1 Storage . | . . . . . . . . . . . . Processor 6 | . . . 2 . . 1 . 3 . . . Hackware 3 | . . . 1 . . 1 . 1 . . . Protection 3 | . . 1 . . 1 1 . . . . . Artifact . | . . . . . . . . . . . . Weapon 21 | 2 2 2 2 . 1 7 . 4 . . 1 Energy Gun 1 | . . 1 . . . . . . . . . Energy Cannon . | . . . . . . . . . . . . Ballistic Gun 18 | 2 2 . 1 . 1 7 . 4 . . 1 Ballistic Cannon . | . . . . . . . . . . . . Launcher . | . . . . . . . . . . . . Special Weapon . | . . . . . . . . . . . . Impact Weapon . | . . . . . . . . . . . . Slashing Weapon 2 | . . 1 1 . . . . . . . . Piercing Weapon . | . . . . . . . . . . . . Special Melee Weapon . | . . . . . . . . . . . . Unidentified Prototypes 6 | . . 2 . . . 3 . . 1 . . Parts Lost 1 | . . . . . . . . 1 . . . Power . | . . . . . . . . . . . . Propulsion . | . . . . . . . . . . . . Utility 1 | . . . . . . . . 1 . . . Weapon . | . . . . . . . . . . . . Highest Loss Streak 1 | . . . . . . . . 1 . . . To Critical Strikes . | . . . . . . . . . . . . Average Backups 2 | . 2 2 2 4 2 3 3 2 1 1 2 Power . | . . . . . . . . . . . 1 Propulsion . | . . . . . . . . . . . 1 Utility . | . 1 . . 2 . 1 1 1 . 1 . Weapon . | . 1 . 1 2 1 1 1 . . . . Tool/Special . | . . . . . . . . . . . . Unused Backups 9 | . 1 3 2 . . 1 . . 1 . 1 Power 3 | . . 2 . . . . . . . . 1 Propulsion 1 | . . . 1 . . . . . . . . Utility 2 | . . 1 . . . . . . 1 . . Weapon 3 | . 1 . 1 . . 1 . . . . . Tool/Special . | . . . . . . . . . . . . Average Slot Usage (%) 95 | . 93 93 91 92 88 97 99 97 96 95 95 Engine 2 | . 12 9 6 7 5 4 . . . . . Core 1 | . . . . . . . 5 4 2 . . Reactor 3 | . . . . . . . . 2 5 9 8 Wheel 1 | . 25 5 . . . . . . . . . Hover 16 | . . 18 21 21 19 21 20 19 15 13 13 Device 30 | . 31 27 26 21 24 23 25 23 32 40 43 Processor 7 | . . . 6 7 5 10 10 9 9 9 8 Hackware 3 | . . . 1 7 5 6 10 8 4 . . Protection 3 | . . 5 7 7 5 5 5 4 1 . . Ballistic Gun 17 | . 25 17 14 14 18 16 15 19 18 18 19 Slashing Weapon 3 | . . 8 7 7 . 4 5 4 4 4 2 Peak Build Rating 147 | 9 10 18 27 27 44 68 86 114 133 137 147 Average Rating 86 | 6 9 13 22 27 37 61 75 94 123 135 145 On Entrance 55 | 4 9 10 16 27 27 43 66 86 112 133 137 Naked Turns . | . . . . . . . . . . . . Heaviest Build 66 | 7 10 23 23 22 32 34 37 58 66 62 66 Greatest Support 67 | 25 25 25 23 23 36 41 50 59 62 64 67 Greatest Overweight (x) 1 | . . . 1 . 1 1 . 1 1 . . Average Overweight (x) . | . . . . . . . . . . . . Largest Inventory Capacity 5 | 4 4 4 4 4 4 4 4 5 5 5 5 Average Capacity 4 | 4 4 4 4 4 4 4 4 4 5 5 5 Most Carried 5 | 2 4 4 4 4 4 4 4 5 5 3 3 Average Carried 2 | . 2 1 2 4 2 3 3 2 1 1 2 Final Capacity 5 | 4 4 4 4 4 4 4 4 5 5 5 5 Final Carried 4 | 2 3 3 4 4 4 4 3 3 1 3 2 Class Distribution -------------------- 23% | Hacker-Ninja 20% | Wizard-Ninja 19% | Hacker-Scout 12% | Hacker-Skirmisher 10% | Hacker-Mutant 8% | Wizard-Skirmisher Dominant Class ---------------- Hacker-Mutant | -10/Materials Hacker-Scout | -9/Materials Hacker-Scout | -8/Materials Hacker-Scout | -7/Factory Hacker-Skirmisher | -7/DSF Hacker-Skirmisher | -6/Factory Wizard-Skirmisher | -5/Factory Wizard-Ninja | -4/Factory Wizard-Ninja | -3/Research Hacker-Ninja | -2/Research Hacker-Scout | -2/Testing Resources | -11 -10 -9 -8 -7 -7 -6 -5 -4 -3 -2 -2 ----------- Run | Yrd Mat Mat Mat Fac DSF Fac Fac Fac Res Res Tes Matter Collected 4370 | 306 . 151 189 . 333 938 128 524 699 164 938 Remotely 3847 | . . . 189 . 267 938 128 524 699 164 938 Salvage Created 6560 | 208 . 103 370 . 201 1801 79 756 771 280 1991 Parts 358 | 15 . 15 18 . 21 79 10 35 53 16 96 Haulers Intercepted 5 | . . 1 . . . 4 . . . . . Recyclers Shooed 3 | . . . . . . 1 . 1 . . 1 Parts Field Recycled . | . . . . . . . . . . . . Retrieved Matter . | . . . . . . . . . . . . Parts Self-Destructed . | . . . . . . . . . . . . Prevented . | . . . . . . . . . . . . Kills | -11 -10 -9 -8 -7 -7 -6 -5 -4 -3 -2 -2 ------- Run | Yrd Mat Mat Mat Fac DSF Fac Fac Fac Res Res Tes Combat Hostiles Destroyed 70 | . . 1 5 . 7 17 2 9 9 3 17 Melee 3 | . . . 3 . . . . . . . . Guns 66 | . . 1 2 . 7 16 2 9 9 3 17 AOE 1 | . . . . . . 1 . . . . . Classes Destroyed 18 | 3 . 4 1 . 3 2 1 . . . 4 Worker 11 | 2 . 1 . . . 5 . . . . 3 Builder 10 | . . 1 . . . 2 . 2 3 . 2 Tunneler 7 | 5 . . . . . 1 . . 1 . . Hauler 5 | . . 1 . . . 4 . . . . . Recycler 5 | 1 . . . . . 1 . 1 . . 2 Mechanic 1 | . . . . . . . . . . . 1 Operator 5 | . . . . . . 1 . 1 . 1 2 Drone 3 | . . . . . . . . . . . 3 Watcher 9 | . . 1 . . . 1 . 1 2 1 3 Swarmer 9 | . . . . . 2 4 . 3 . . . Cutter 4 | . . . . . 4 . . . . . . Grunt 20 | . . 1 2 . . 10 . . 3 . 4 Researcher 4 | . . . . . . . . . . . 4 Sentry 11 | . . . 3 . . 1 . 2 1 2 2 Hunter 13 | . . . . . . 2 . 4 . . 7 Programmer 7 | . . . . . . . 2 . 4 1 . Heavy 2 | . . . . . 1 . . . 1 . . Q-Series 1 | . . . . . . . . . . . 1 Best Kill Streak 19 | 3 . 2 2 . 4 19 2 9 6 2 9 Combat Bots Only 9 | . . 1 2 . 4 9 2 4 5 2 3 Max Kills in Single Turn 4 | 1 . 1 1 . 1 4 1 2 2 1 2 Gunslinging 1 | . . . . . . . . 1 . . . Exploded 1 | . . . . . . 1 . . . . . Melee 1 | . . . 1 . . . . . . . . Uniques/NPCs Destroyed . | . . . . . . . . . . . . Combat | -11 -10 -9 -8 -7 -7 -6 -5 -4 -3 -2 -2 -------- Run | Yrd Mat Mat Mat Fac DSF Fac Fac Fac Res Res Tes Hostile Shots Fired 442 | . . 8 37 . 40 67 17 121 27 14 111 Missed 204 | . . 6 15 . 14 31 10 61 12 8 47 Hits 238 | . . 2 22 . 26 36 7 60 15 6 64 Melee 21 | . . . . . 17 . . . . . 4 Projectile 217 | . . 2 22 . 9 36 7 60 15 6 60 AOE 1 | . . . . . 1 . . . . . . Critical Strikes 18 | . . . 1 . 9 2 . 2 2 1 1 Actively Blocked 1 | . . . . . . . . . . . 1 Damage Taken 3356 | . . 18 207 . 440 400 86 732 433 103 937 Core 2570 | . . 6 152 . 305 304 61 572 350 83 737 Absorbed by Shields . | . . . . . . . . . . . . Redirected to Core 2296 | . . 6 140 . 284 270 61 486 299 66 684 Ignored by Resistances 1975 | . . 12 124 . 257 238 51 436 246 61 550 Core Remaining (%) 74 | 100 100 99 78 . 54 36 52 60 93 . . Volleys Fired 268 | 28 . 8 12 . 19 56 6 32 32 12 63 Largest 5 | 2 . 2 2 . 4 3 3 4 4 4 5 Hottest 175 | 40 . 40 40 . 86 89 83 111 140 140 175 Shots Fired 923 | 56 . 16 24 . 51 168 18 128 128 48 286 Gun 923 | 56 . 16 24 . 51 168 18 128 128 48 286 Cannon . | . . . . . . . . . . . . Launcher . | . . . . . . . . . . . . Special . | . . . . . . . . . . . . Kinetic 923 | 56 . 16 24 . 51 168 18 128 128 48 286 Thermal . | . . . . . . . . . . . . Explosive . | . . . . . . . . . . . . Electromagnetic . | . . . . . . . . . . . . Robot Hit Streak 46 | 25 . 38 39 . 20 35 26 28 24 12 46 Robot Miss Streak 4 | 1 . . 1 . 4 2 1 2 1 2 3 Penetration Max 2 | . . . . . . 1 . 2 1 . 2 Secondary Targets 17 | . . . 1 . 1 4 . 3 3 . 5 Max Gunslinging Chain 1 | . . . 1 . 1 1 . 1 1 . 1 Shots Hit Robots 691 | 50 . 17 28 . 41 137 15 107 74 34 188 Core Hits 295 | 16 . 7 10 . 16 72 5 40 32 14 83 Critical Kills 20 | . . . . . 1 8 1 9 . . 1 Critical Parts Destroyed 26 | . . . . . . 10 . 11 1 . 4 Critical Strikes 50 | . . . . . 1 18 1 22 1 1 6 Destroy 50 | . . . . . 1 18 1 22 1 1 6 Melee Attacks 46 | . . 5 15 . . 2 3 5 12 4 . Impact . | . . . . . . . . . . . . Slashing 46 | . . 5 15 . . 2 3 5 12 4 . Piercing . | . . . . . . . . . . . . Sneak Attacks 5 | . . 2 . . . 1 . . 2 . . Combat Hostiles . | . . . . . . . . . . . . Follow-up Attacks . | . . . . . . . . . . . . Damage Inflicted 15140 | 387 . 291 476 . 567 2772 262 1386 2389 924 5686 Guns 13684 | 387 . 150 230 . 567 1914 262 1386 2178 924 5686 Cannons . | . . . . . . . . . . . . Explosions 777 | . . . . . . 777 . . . . . Melee 679 | . . 141 246 . . 81 . . 211 . . Ramming . | . . . . . . . . . . . . Kinetic 13684 | 387 . 150 230 . 567 1914 262 1386 2178 924 5686 Thermal . | . . . . . . . . . . . . Explosive 777 | . . . . . . 777 . . . . . Electromagnetic . | . . . . . . . . . . . . Impact . | . . . . . . . . . . . . Slashing 679 | . . 141 246 . . 81 . . 211 . . Piercing . | . . . . . . . . . . . . Highest Corruption . | . . . . . . . . . . . . Average Corruption . | . . . . . . . . . . . . Corruption Purged . | . . . . . . . . . . . . Corruption Blocked . | . . . . . . . . . . . . Overload Shots . | . . . . . . . . . . . . Overflow Damage 204 | . . . . . . 104 . . 100 . . Projectiles . | . . . . . . . . . . . . Explosions 93 | . . . . . . 93 . . . . . Melee 111 | . . . . . . 11 . . 100 . . Knockbacks . | . . . . . . . . . . . . Impact . | . . . . . . . . . . . . Kinetic . | . . . . . . . . . . . . Secondary . | . . . . . . . . . . . . Self-Inflicted Damage . | . . . . . . . . . . . . Shots . | . . . . . . . . . . . . Rammed . | . . . . . . . . . . . . Targets Rammed . | . . . . . . . . . . . . Kicked . | . . . . . . . . . . . . Crushed . | . . . . . . . . . . . . Highest Temperature 236 | . . . 19 . . 236 . 119 97 69 80 Average Temperature 33 | . . . 4 . . 85 . 36 33 29 27 Received Heat Transfer 529 | . . 18 135 . . 168 45 63 64 18 18 Siege Activations . | . . . . . . . . . . . . Martial Activations . | . . . . . . . . . . . . Shielding Activations . | . . . . . . . . . . . . Robots Disrupted . | . . . . . . . . . . . . Combat Hostiles . | . . . . . . . . . . . . Robots Corrupted . | . . . . . . . . . . . . Combat Hostiles . | . . . . . . . . . . . . Parts Fried . | . . . . . . . . . . . . Impact Corruptions . | . . . . . . . . . . . . Robots Melted . | . . . . . . . . . . . . Combat Hostiles . | . . . . . . . . . . . . Parts Melted . | . . . . . . . . . . . . Heat Transferred . | . . . . . . . . . . . . Parts Sabotaged . | . . . . . . . . . . . . Parts Stolen . | . . . . . . . . . . . . Parts Stripped . | . . . . . . . . . . . . Power Chain Reactions . | . . . . . . . . . . . . Alert | -11 -10 -9 -8 -7 -7 -6 -5 -4 -3 -2 -2 ------- Run | Yrd Mat Mat Mat Fac DSF Fac Fac Fac Res Res Tes Maximum Alert Level 2 | . . . . . . 2 . . . . 1 Low Security (%) 84 | 100 100 100 100 100 100 38 100 100 100 100 62 Level 1 8 | . . . . . . 11 . . . . 37 Level 2 6 | . . . . . . 50 . . . . . Level 3 . | . . . . . . . . . . . . Level 4 . | . . . . . . . . . . . . Level 5 . | . . . . . . . . . . . . High Security . | . . . . . . . . . . . . Max Security . | . . . . . . . . . . . . Peak Influence 457 | 10 . 28 60 15 183 457 146 175 124 93 318 Initial 144 | . . . . 15 8 70 144 45 33 45 24 Average 100 | 2 . 3 16 15 94 285 114 78 18 59 177 Influence Increases 2627 | 40 . 46 150 . 175 647 86 294 324 117 748 Destroy 0b10 Robot/C 1480 | . . 20 100 . 140 340 40 180 180 60 420 Destroy 0b10 Robot/NC 265 | 40 . 20 . . . 75 . 25 30 10 65 Destroy Leader 328 | . . 4 40 . 20 70 10 52 54 32 46 Successful Hack 17 | . . . 6 . . 5 . 6 . . . Disable Machine 104 | . . . . . . 80 . 8 . . 16 Destroy Structure 283 | . . 2 4 . . 47 6 8 30 15 171 Partial Spotted 60 | . . . . . . . 15 . 15 . 30 Lose Combat Pursuer 90 | . . . . . 15 30 15 15 15 . . Influence Decreases 2335 | 40 . 46 104 31 7 428 363 334 300 169 513 Entered New Map 638 | . . . . 31 7 113 258 80 52 64 33 Time Decay 1687 | 40 . 46 104 . . 315 105 244 248 105 480 Lost Part 10 | . . . . . . . . 10 . . . Squads Dispatched 19 | . . 1 . . 2 6 1 1 3 1 4 Investigation 2 | . . 1 . . . 1 . . . . . Extermination 5 | . . . . . . 1 . . 1 1 2 Reinforcement 11 | . . . . . 2 3 1 1 2 . 2 Assault . | . . . . . . . . . . . . Garrison 1 | . . . . . . 1 . . . . . Intercept . | . . . . . . . . . . . . Searches Triggered . | . . . . . . . . . . . . Construction Impeded 1 | . . . . . . . . 1 . . . Haulers Reinforced 2 | . . . . . . 2 . . . . . Active Scanning Responses . | . . . . . . . . . . . . Cargo Convoy Interrupts . | . . . . . . . . . . . . Stealth | -11 -10 -9 -8 -7 -7 -6 -5 -4 -3 -2 -2 --------- Run | Yrd Mat Mat Mat Fac DSF Fac Fac Fac Res Res Tes Distress Signals 5 | . . . . . . 3 1 1 . . . Communications Jammed 7 | . . . . . . . . 6 . . 1 Distress Signals 3 | . . . . . . . . 2 . . 1 Times Spotted 114 | . . 4 6 . 10 22 10 11 13 6 32 Peak Tracking Total 7 | . . 2 3 . 5 4 7 5 2 2 5 Tactical Retreats 6 | . . . . . 1 2 1 1 1 . . Traps | -11 -10 -9 -8 -7 -7 -6 -5 -4 -3 -2 -2 ------- Run | Yrd Mat Mat Mat Fac DSF Fac Fac Fac Res Res Tes Traps Triggered 8 | . . . 1 . 3 1 . . 1 . 2 Indirectly . | . . . . . . . . . . . . Trap Hack Attempts . | . . . . . . . . . . . . Triggered . | . . . . . . . . . . . . Disarmed . | . . . . . . . . . . . . Reprogrammed . | . . . . . . . . . . . . Reused . | . . . . . . . . . . . . Traps Extracted . | . . . . . . . . . . . . Installed . | . . . . . . . . . . . . Triggered . | . . . . . . . . . . . . Machines | -11 -10 -9 -8 -7 -7 -6 -5 -4 -3 -2 -2 ---------- Run | Yrd Mat Mat Mat Fac DSF Fac Fac Fac Res Res Tes Machines Disabled 28 | . . . . . . 20 . 2 . . 6 Max in Single Turn 12 | . . . . . . 12 . 1 . . 1 Garrison Access 3 | . . . . . . 1 . . 1 . 1 Machines Repaired . | . . . . . . . . . . . . Machines Dismantled . | . . . . . . . . . . . . Machines Sabotaged . | . . . . . . . . . . . . Overloaded Fab Kills . | . . . . . . . . . . . . Hacking | -11 -10 -9 -8 -7 -7 -6 -5 -4 -3 -2 -2 --------- Run | Yrd Mat Mat Mat Fac DSF Fac Fac Fac Res Res Tes Machines Accessed 12 | . 1 1 1 1 . 2 1 1 2 1 1 Terminals 9 | . 1 1 1 1 . 1 1 1 1 1 . Fabricators . | . . . . . . . . . . . . Repair Stations . | . . . . . . . . . . . . Recycling Units . | . . . . . . . . . . . . Scanalyzers . | . . . . . . . . . . . . Garrison Access 3 | . . . . . . 1 . . 1 . 1 Total Hacks 18 | . 1 3 2 1 . 4 1 1 2 1 2 Successful 12 | . 1 1 1 1 . 2 1 1 2 1 1 Failed 6 | . . 2 1 . . 2 . . . . 1 Catastrophic 2 | . . 2 . . . . . . . . . Database Lockouts . | . . . . . . . . . . . . Manual 9 | . 1 2 2 . . 3 1 . . . . Terminals 14 | . 1 3 2 1 . 3 1 1 1 1 . Fabricators . | . . . . . . . . . . . . Repair Stations . | . . . . . . . . . . . . Recycling Units . | . . . . . . . . . . . . Scanalyzers . | . . . . . . . . . . . . Garrison Access 4 | . . . . . . 1 . . 1 . 2 Terminal Hacks 9 | . 1 1 1 1 . 1 1 1 1 1 . Open DSF 2 | . . . . 1 . . . . 1 . . Level Access Points 5 | . 1 . 1 . . 1 1 1 . . . Branch Access Points 2 | . . 1 . . . . . . . 1 . Fabricator Hacks . | . . . . . . . . . . . . Repair Station Hacks . | . . . . . . . . . . . . Recycling Unit Hacks . | . . . . . . . . . . . . Scanalyzer . | . . . . . . . . . . . . Garrison Access Hacks 3 | . . . . . . 1 . . 1 . 1 Seal Access 3 | . . . . . . 1 . . 1 . 1 Unauthorized Hacks . | . . . . . . . . . . . . Terminals . | . . . . . . . . . . . . Fabricators . | . . . . . . . . . . . . Repair Stations . | . . . . . . . . . . . . Recycling Units . | . . . . . . . . . . . . Scanalyzers . | . . . . . . . . . . . . Garrison Access . | . . . . . . . . . . . . Data Cores Recovered 4 | . . . . . . 1 . 1 . 1 1 Used 2 | . . . . . . 1 . 1 . . . Hacking Detections 5 | . 1 1 . . . . 1 . . 1 1 Full Trace Events 1 | . . 1 . . . . . . . . . Feedback Events . | . . . . . . . . . . . . Feedback Blocked . | . . . . . . . . . . . . Robot Schematics Acquired 2 | . . . . . . . . . . . 2 Robots Built . | . . . . . . . . . . . . Authchips . | . . . . . . . . . . . . Time . | . . . . . . . . . . . . Total Robot Build Rating . | . . . . . . . . . . . . Part Schematics Acquired 5 | . . . . . . . . . . . 5 Parts Built . | . . . . . . . . . . . . Authchips . | . . . . . . . . . . . . Time . | . . . . . . . . . . . . Total Part Build Rating . | . . . . . . . . . . . . Parts Repaired . | . . . . . . . . . . . . Time . | . . . . . . . . . . . . Parts Recycled . | . . . . . . . . . . . . Recycled Matter . | . . . . . . . . . . . . Retrieved Matter . | . . . . . . . . . . . . Retrieved Components . | . . . . . . . . . . . . Parts Scanalyzed . | . . . . . . . . . . . . Part Schematics Acquired . | . . . . . . . . . . . . Parts Damaged . | . . . . . . . . . . . . Bothacking | -11 -10 -9 -8 -7 -7 -6 -5 -4 -3 -2 -2 ------------ Run | Yrd Mat Mat Mat Fac DSF Fac Fac Fac Res Res Tes Used RIF Installer . | . . . . . . . . . . . . Robots Hacked . | . . . . . . . . . . . . Non-combat . | . . . . . . . . . . . . Combat . | . . . . . . . . . . . . Robot Hacks Applied . | . . . . . . . . . . . . Relay Couplers Released 1 | . . . . . . 1 . . . . . Machine Destruction 1 | . . . . . . 1 . . . . . Fabnet Peak Effective % . | . . . . . . . . . . . . Robots Rewired . | . . . . . . . . . . . . Allies Hacked . | . . . . . . . . . . . . Hacks Repelled . | . . . . . . . . . . . . Allies | -11 -10 -9 -8 -7 -7 -6 -5 -4 -3 -2 -2 -------- Run | Yrd Mat Mat Mat Fac DSF Fac Fac Fac Res Res Tes Total Allies . | . . . . . . . . . . . . Largest Group . | . . . . . . . . . . . . Highest-Rated Group . | . . . . . . . . . . . . Highest-Rated Ally . | . . . . . . . . . . . . Total Orders . | . . . . . . . . . . . . Ally Attacks . | . . . . . . . . . . . . Total Damage . | . . . . . . . . . . . . Kills . | . . . . . . . . . . . . Allies Corrupted . | . . . . . . . . . . . . Allies Melted . | . . . . . . . . . . . . Intel | -11 -10 -9 -8 -7 -7 -6 -5 -4 -3 -2 -2 ------- Run | Yrd Mat Mat Mat Fac DSF Fac Fac Fac Res Res Tes Active Infowar (turns) 3275 | 176 92 192 211 2 199 434 155 394 632 140 648 Sensors 1765 | 176 92 192 161 . . . . . 356 140 648 Terrain 3180 | 81 92 192 211 2 199 434 155 394 632 140 648 Jamming 1966 | . . . . . . . 153 393 632 140 648 Robot Analysis Total . | . . . . . . . . . . . . Derelict Logs Recovered . | . . . . . . . . . . . . Drone Launches . | . . . . . . . . . . . . Drone Recoveries . | . . . . . . . . . . . . Exploration | -11 -10 -9 -8 -7 -7 -6 -5 -4 -3 -2 -2 ------------- Run | Yrd Mat Mat Mat Fac DSF Fac Fac Fac Res Res Tes Turns Passed 3275 | 176 92 192 211 2 199 434 155 394 632 140 648 Spaces Moved 2803 | 72 94 169 137 4 135 396 188 294 561 189 564 Core . | . . . . . . . . . . . . Treads . | . . . . . . . . . . . . Legs 16 | 16 . . . . . . . . . . . Wheels 197 | 56 94 47 . . . . . . . . . Hover 2590 | . . 122 137 4 135 396 188 294 561 189 564 Flight . | . . . . . . . . . . . . Fastest Speed 43 | 80 80 52 52 52 48 48 43 43 45 45 45 Average Speed 50 | 88 80 59 52 52 52 48 43 44 47 45 49 Slowest Speed 120 | 120 80 80 116 52 120 112 48 108 108 45 52 Overloaded Moves . | . . . . . . . . . . . . Propulsion Burnouts . | . . . . . . . . . . . . Robots Hopped . | . . . . . . . . . . . . Potential Cave-ins . | . . . . . . . . . . . . Cave-ins Triggered . | . . . . . . . . . . . . Exploration Rate (%) 26 | 4 19 22 19 . 90 14 8 9 18 9 76 Regions Visited 11 Branch Regions 1 Pre-discovered Areas . | . . . . . . . . . . . . Known Exits Taken 10 | 1 1 1 1 1 . 1 1 1 1 1 . Unknown Exits Taken . | . . . . . . . . . . . . Scrap Searched . | . . . . . . . . . . . . Spaces Dug 30 | . . 1 4 . . 1 3 3 9 4 5 Terrain Destroyed 192 | . . 1 4 . . 55 3 3 13 7 106 Melee 24 | . . 1 4 . . 1 3 3 8 4 . Projectile 109 | . . . . . . . . . . 3 106 AOE 53 | . . . . . . 53 . . . . . Terrain Rammed . | . . . . . . . . . . . . Walls Destroyed . | . . . . . . . . . . . . Machines Disabled . | . . . . . . . . . . . . Actions | -11 -10 -9 -8 -7 -7 -6 -5 -4 -3 -2 -2 --------- Run | Yrd Mat Mat Mat Fac DSF Fac Fac Fac Res Res Tes Total 4104 | 140 113 233 222 3 227 519 248 497 861 216 825 Wait 611 | 27 9 33 34 . 11 24 34 101 199 8 131 Move 2792 | 71 93 168 136 3 134 395 187 293 560 188 564 Hop . | . . . . . . . . . . . . Pick Up 73 | 7 5 7 8 . 13 5 3 13 9 2 1 Fast Attach 13 | . . . 1 . 2 10 . . . . . Attach 44 | 5 1 5 4 . 11 1 3 8 5 . 1 Detach 1 | . . . . . . 1 . . . . . Swap 40 | . 2 3 6 . 5 6 2 8 4 2 2 Drop 60 | 2 3 4 6 . 4 16 3 10 11 . 1 Fire 268 | 28 . 8 12 . 19 56 6 32 32 12 63 Melee 46 | . . 5 15 . . 2 3 5 12 4 . Ram . | . . . . . . . . . . . . Kick . | . . . . . . . . . . . . Crush . | . . . . . . . . . . . . Escape Stasis 35 | . . . . . 22 . . . . . 13 Rewire . | . . . . . . . . . . . . Trap . | . . . . . . . . . . . . Miscellaneous 121 | . . . . . 6 3 7 27 29 . 49 Route ------- -11/Scrapyard -10/Materials (discovered 3 exits: *Mat x3) -9/Materials (discovered 4 exits: *Mat / *Min x2 / Sto) -8/Materials (discovered 3 exits: *Fac x3) -7/Factory -7/DSF -6/Factory (discovered 4 exits: *Fac x4) -5/Factory (discovered 4 exits: *Fac x4) -4/Factory (discovered 4 exits: *Res x4) -3/Research (discovered 2 exits: *Res / Qua) -2/Research (discovered 3 exits: *Acc / *Tes x2) -2/Testing (discovered 1 exit: Acc) History --------- Turn | Location | Event 1 | -11/Scrapyard | Upgraded with Propulsion slot (x1) 1 | -11/Scrapyard | Upgraded with Utility slot (x2) 1 | -11/Scrapyard | Upgraded with Weapon slot (x1) 1 | -11/Scrapyard | Identified exit to Materials 1 | -11/Scrapyard | Discovered exit to Materials (range 1) 177 | -11/Scrapyard | Entered Materials 203 | -10/Materials | Identified exit to Materials 269 | -10/Materials | Entered another Materials area 271 | -9/Materials | Reached level 2 271 | -9/Materials | Reached level 3 278 | -9/Materials | Upgraded with Propulsion slot (x1) 278 | -9/Materials | Upgraded with Utility slot (x1) 278 | -9/Materials | Upgraded with Weapon slot (x1) 405 | -9/Materials | Identified exit to Mines 405 | -9/Materials | Identified exit to Storage 458 | -9/Materials | Identified exit to Materials 458 | -9/Materials | Discovered exit to Materials (range 5) 461 | -9/Materials | Entered another Materials area 463 | -8/Materials | Reached level 4 463 | -8/Materials | Reached level 5 463 | -8/Materials | Reached level 6 466 | -8/Materials | Upgraded with Propulsion slot (x1) 466 | -8/Materials | Upgraded with Utility slot (x2) 625 | -8/Materials | Identified exit to Factory 672 | -8/Materials | Entered Factory 674 | -7/Factory | Reached level 7 674 | -7/Factory | Reached level 8 674 | -7/Factory | Reached level 9 674 | -7/Factory | Identified exit to DSF 674 | -7/Factory | Entered DSF 676 | -7/DSF | Reached level 10 679 | -7/DSF | Upgraded with Utility slot (x2) 679 | -7/DSF | Upgraded with Weapon slot (x1) 694 | -7/DSF | Additional patrols routed to DSF 793 | -7/DSF | Core integrity fell below 50% 796 | -7/DSF | Reached level 11 859 | -7/DSF | Identified exit to Factory 859 | -7/DSF | Discovered exit to Factory (range 16) 873 | -7/DSF | Entered Factory 875 | -6/Factory | Reached level 12 884 | -6/Factory | Upgraded with Utility slot (x1) 920 | -6/Factory | Reached level 13 974 | -6/Factory | Core integrity fell below 50% 1047 | -6/Factory | Build established: Hacker-Skirmisher 1072 | -6/Factory | Garrison activated, responded to threat 1106 | -6/Factory | Destroyed 9 combat bots 1117 | -6/Factory | Reached level 14 1164 | -6/Factory | Identified exit to Factory 1307 | -6/Factory | Entered another Factory area 1308 | -5/Factory | Core integrity fell below 50% 1309 | -5/Factory | Reached level 15 1309 | -5/Factory | Upgraded with Utility slot (x1) 1330 | -5/Factory | Identified exit to Factory 1421 | -5/Factory | Reached level 16 1448 | -5/Factory | Upgraded with Weapon slot (x1) 1462 | -5/Factory | Entered another Factory area 1464 | -4/Factory | Reached level 17 1464 | -4/Factory | Reached level 18 1465 | -4/Factory | Upgraded with Power slot (x1) 1582 | -4/Factory | Core integrity fell below 50% 1674 | -4/Factory | Reached level 19 1702 | -4/Factory | Identified exit to Research 1719 | -4/Factory | Spotted B-86 Titan 1856 | -4/Factory | Entered Research 1858 | -3/Research | Reached level 20 1858 | -3/Research | Reached level 21 1858 | -3/Research | Reached level 22 1867 | -3/Research | Identified exit to DSF 1867 | -3/Research | Upgraded with Utility slot (x1) 2066 | -3/Research | Build established: Wizard-Ninja 2441 | -3/Research | Identified exit to Quarantine 2441 | -3/Research | Discovered exit to Quarantine (range 16) 2449 | -3/Research | Identified exit to Research 2449 | -3/Research | Discovered exit to Research (range 17) 2488 | -3/Research | Entered another Research area 2490 | -2/Research | Reached level 23 2490 | -2/Research | Reached level 24 2490 | -2/Research | Reached level 25 2503 | -2/Research | Identified exit to Testing 2538 | -2/Research | Reached level 26 2544 | -2/Research | Identified exit to Access 2544 | -2/Research | Discovered exit to Access (range 14) 2628 | -2/Research | Entered Testing 2628 | -2/Testing | Upgraded with Utility slot (x1) 2630 | -2/Testing | Reached level 27 2649 | -2/Testing | Build established: Hacker-Ninja 2732 | -2/Testing | Scanned by Researcher 2827 | -2/Testing | Spotted Striker 2903 | -2/Testing | Discovered exit to Access (range 7) 2939 | -2/Testing | Reached level 28 3236 | -2/Testing | Build established: Hacker-Scout 3276 | -2/Testing | Self-destructed Last Messages --------------- 03229_ Slug penetrates G-73 Enforcer. 03229_ Slug penetrates R-10 Processor. 03232_ Slug penetrates G-73 Enforcer. 03232_ Slug penetrates Wall. 03232_ Slug penetrates G-73 Enforcer. 03232_ Slug penetrates Wall. 03232_ G-73 Enforcer destroyed. 03233_ Acquired 30 matter. 03233_ K-01 Serf collects debris. 03241_ U-05 Engineer builds a Wall. 03243_ K-01 Serf collects debris. 03265_ Slug penetrates U-05 Engineer. 03265_ Slug penetrates Wall. 03265_ Slug penetrates U-05 Engineer. 03265_ U-05 Engineer destroyed. 03266_ Acquired 15 matter. 03269_ Knocked back. 03275_ ALERT: Potential suspicious activity detected, Programmers report to Testing Zone 1R. Map ----- +----------------------------------------------------+ | | | | | | | | | | | | | | | | | | | | | | | | | ?????????????????????????????????????????????????? | | ???????????????????#??????#??????????????????????? | | ??????????????????????#??????#?#?????????????????? | | #??????????????????????#?????#???????????????????? | | ?????????????######??#####?#?#????#?###??????????? | | ?? ??????????? / #??????##??????????????? | | ?#?????????????# ##?#??#????#???????????? | | ##????#???????## """ #?#?#????#?????????????? | | #?????????+????# """ #?????##??????#????????? | | ?##? # g """ ####?##?###?#??????????? | | #### "" # =##????#####????????????? | | ?### """ """ # g ########??#????????????? | | #### "R """ ####A # #???#?##????????? | | #### """ """ #### @# "" ####??##????????? | | #### "" #### "" + """##????#?????????? | | #### #### "" # S"#???#??####?????? | | ################### "T # """#???#???#???????? | | ############ p "" # """#??#?#??##??????? | | ############ p "" # ###?#####?#?????? | | ############ p< + ##??#??##?#?????? | | ############ # = ##???##?????????? | | ########################### ###??#?#?##?????? | | ####### ############ """ #???##???##?????? | | ####### ############ """ ###?#??##???????? | | # =############ """ ###?####?#??????? | | + ![##%%/" # ##?###?#?##?????? | | # =## ########+######?###??????????? | | ### # ### ######## #####?#?#???????????? | | ### ####+####### ##### #######?#?#?????????? | | ### ##"##x#######?###?#?#?????? | | " !%=x" #####?????#??????? | | ### #####x####?####??#????????? | | ################## ##### ######?###?#??????? | | #################### ####### ###??###??????????? | | ############# ##### #############?#??##?????????? | | ########### ###### ##########?#####??#?????????? | | # ############### ######?#?#?####?#??????????? | | # %% " #########?###???#??????????? | +----------------------------------------------------+ Best States ------------- Heat Dissipation 92 Energy Generation 50 Energy Capacity 410 Matter Stores 450 Matter Capacity 450 Sight Range 18 Robot Scan Range 18 Terrain Scan Range 16 Terrain Scan Density 810 Jamming Range 14 Armor Coverage 300 Resistance: KI 35 Resistance: TH 35 Resistance: EX 35 Resistance: EM 35 Resistance: I 35 Resistance: S 35 Resistance: P 35 Weapon Cycling 25 Phase Shifting 10 Evasion (%) 66 Targeting Accuracy 8 Target Analysis 6 Recoil Reduction 6 Matter Filtering 30 Offensive Hacking 50 Defensive Hacking 25 Item Schematics ----------------- Exp. Biometal Leg | -2/Testing | Archive Cld. Antigrav System | -2/Testing | Archive Exp. Heat Sink | -2/Testing | Archive System Purifier | -2/Testing | Archive Nanosword | -2/Testing | Archive Robot Schematics ------------------ X-82 Rainmaker | -2/Testing | Archive G-73 Enforcer | -2/Testing | Archive Fabricated ------------ Nothing Repaired ---------- Nothing Alien Tech Used ----------------- None Achievements -------------- None Challenges ------------ None RPGLIKE | -11 -10 -9 -8 -7 -7 -6 -5 -4 -3 -2 -2 --------- Run | Yrd Mat Mat Mat Fac DSF Fac Fac Fac Res Res Tes Levels Raised 27 | . . 2 3 3 2 3 2 3 3 4 2 XP Earned 47889 | 6000 . 3421 5218 4279 2423 4602 2812 4702 5541 4841 4050 XP Spent 44955 | 6000 . 2970 4505 . 6000 4485 4480 4495 4500 . 7520 Upgrades 76 | 13 . 6 7 . 4 12 4 9 9 . 12 Power Slot 1 | . . . . . . . . 1 . . . Propulsion Slot 3 | 1 . 1 1 . . . . . . . . Utility Slot 11 | 2 . 1 2 . 2 1 1 . 1 . 1 Weapon Slot 4 | 1 . 1 . . 1 . 1 . . . . Core Integrity 16 | . . . 3 . . 3 2 1 5 . 2 Heat Dissipation 8 | . . . . . . 3 . 2 1 . 2 Energy Generation 1 | . . . . . . 1 . . . . . Matter Storage 3 | . . . . . . 1 . . 1 . 1 Mass Support 3 | 1 . . . . . 1 . 1 . . . Inventory Capacity 5 | 4 . . . . . . . 1 . . . Sight Range 2 | 1 . . . . . . . 1 . . . Sensor Range 1 | . . . . . . . . . . . 1 Terrain Scan Density 8 | . . 3 . . . 2 . . 1 . 2 Ranged Accuracy 1 | 1 . . . . . . . . . . . Hack Attack % 4 | 2 . . . . 1 . . 1 . . . Hack Defense % 1 | . . . 1 . . . . . . . . KI Damage % 4 | . . . . . . . . 1 . . 3 Protomatter Created 1225 | . . 48 . . 56 94 54 210 226 90 447 Integrity Restored 2720 | . . . . . 123 72 162 627 678 . 1058 Core 2405 | . . . . . 123 72 162 627 678 . 743 Parts 315 | . . . . . . . . . . . 315 Protomatter Decayed 294 | . . 48 . . . 70 . . . 90 86 Game ------ Seed SkeletonIntegritySlayer Manual? 0 Play Time 00:39:18 Cumulative 1038.4 hours Start 2025.07.23 @ 02:34:55 End 2025.07.23 @ 03:14:28 Sessions 1 Manual Loads 0 Difficulty Explorer Special Mode Winter2019/RPGLIKE Game No. 318 Rogue 104 Adventurer 111 Explorer 103 Win Type - Total 48 Types 22/8/1/7/3/1/1/1/1/3 Lore% 97 Gallery% 99 Achievement% 97 Wizard Run 0 Options --------- Layout 2 ASCII 0 Keyboard 0 Movement Mouse Keybinds 0 Fullscreen 2 Font 24/Smallcaps Map View 50x44 Zoom Use 0% Tactical HUD 1 Map Filters NONE Filters NONE Steam 1 RUN: c3496497-3394-4b98-ba90-2e638993a532